fUSD/lending_fUSD_20250513
["ID","MTS","AMOUNT","RATE_DAILY","PERIOD"]
[360876779,1747094409571,412.05,0.000213,30]
[360876782,1747094658700,2000.0,0.00028,120]
[360876783,1747094659446,225.49,0.00010879,2]
[360876809,1747094906259,518.357,0.00021999,30]
[360876848,1747095032374,-157.21,0.00012772,2]
[360876849,1747095032384,-200.0,0.00012785,2]
[360876850,1747095032393,-200.0,0.00012793,2]
[360876851,1747095032403,-1200.0,0.00012797,2]
[360876852,1747095032412,-500.0,0.00012798,2]
[360876853,1747095032422,-500.0,0.00012798,2]
[360876854,1747095032431,-500.0,0.00012798,2]
[360876855,1747095032441,-500.0,0.00012798,2]
[360876856,1747095032451,-419.29536178,0.00012798,2]
[360876857,1747095032461,-500.0,0.00012798,2]
[360876858,1747095032471,-500.0,0.00012798,2]
[360876859,1747095032481,-500.0,0.00012798,2]
[360876860,1747095032491,-500.0,0.00012798,2]
[360876861,1747095032501,-500.0,0.00012798,2]
[360876862,1747095032511,-500.0,0.00012798,2]
[360876863,1747095032521,-500.0,0.00012798,2]
[360876864,1747095032531,-200.0,0.000128,2]
[360876865,1747095032541,-1000.0,0.00012802,2]
[360876867,1747095032551,-225.49,0.00013143,2]
[360876869,1747095032561,-1125.921,0.00013489,2]
[360876871,1747095032570,-154.0,0.00013489,2]
[360876873,1747095032580,-5939.0,0.00013489,2]
[360876875,1747095032594,-2700.9396,0.00013598,2]
[360876876,1747095032604,-3475.23215556,0.00013652,2]
[360876877,1747095032613,-207.4,0.0001369,2]
[360876878,1747095032623,-400.0,0.00013698,2]
[360876879,1747095032632,-400.0,0.00013698,2]
[360876880,1747095032642,-400.0,0.00013698,2]
[360876881,1747095032652,-400.0,0.00013698,2]
[360876883,1747095032661,-400.0,0.00013698,2]
[360876884,1747095032671,-473.3250719,0.00013698,2]
[360876885,1747095032681,-400.0,0.00013698,2]
[360876886,1747095032691,-137.18681076,0.00013698,2]
[360876887,1747095032727,-262.81318924,0.00013698,2]
[360876889,1747095032736,-99.26681076,0.00013698,2]
[360876899,1747095038634,-1146.0,0.00013489,2]
[360876900,1747095038645,-400.0,0.00013698,2]
[360876901,1747095038657,-400.0,0.00013698,2]
[360876902,1747095038668,-400.0,0.00013698,2]
[360876903,1747095038679,-806.1,0.00013698,2]
[360876904,1747095038691,-635.34,0.00013698,2]
[360876905,1747095038702,-477.69,0.00013698,2]
[360876906,1747095038713,-455.52,0.00013698,2]
[360876907,1747095038724,-400.0,0.00013698,2]
[360876908,1747095038736,-400.0,0.00013698,2]
[360876909,1747095038748,-400.0,0.00013698,2]
[360876910,1747095038759,-400.0,0.00013698,2]
[360876911,1747095038771,-500.03,0.00013698,2]
[360876912,1747095038782,-451.84,0.00013698,2]
[360876913,1747095038794,-507.98,0.00013698,2]
[360876914,1747095038806,-400.0,0.00013698,2]
[360876915,1747095038818,-561.2,0.00013698,2]
[360876916,1747095038829,-621.75,0.00013698,2]
[360876917,1747095038840,-369.47581592,0.00013698,2]
[360876918,1747095038854,-400.0,0.00013698,2]
[360876919,1747095038865,-400.0,0.00013698,2]
[360876920,1747095038877,-532.07,0.00013698,2]
[360876922,1747095038887,-350.02,0.00013698,2]
[360876924,1747095038898,-400.0,0.00013698,2]
[360876925,1747095038909,-400.0,0.00013698,2]
[360876926,1747095038920,-400.0,0.00013698,2]
[360876927,1747095038931,-485.65825036,0.00013698,2]
[360876929,1747095038942,-400.0,0.00013698,2]
[360876930,1747095038954,-400.0,0.00013698,2]
[360876932,1747095038965,-400.0,0.00013698,2]
[360876935,1747095038976,-400.0,0.00013698,2]
[360876937,1747095038986,-400.0,0.00013698,2]
[360876939,1747095038997,-400.0,0.00013698,2]
[360876941,1747095039008,-400.0,0.00013698,2]
[360876943,1747095039019,-170.97914135,0.00013698,2]
[360876946,1747095039030,-400.0,0.00013698,2]
[360876948,1747095039041,-400.0,0.00013698,2]
[360876950,1747095039052,-400.0,0.00013698,2]
[360876952,1747095039063,-400.0,0.00013698,2]
[360876954,1747095039075,-400.0,0.00013698,2]
[360876957,1747095039087,-400.0,0.00013698,2]
[360876959,1747095039100,-400.0,0.00013698,2]
[360876961,1747095039111,-400.0,0.00013698,2]
[360876963,1747095039122,-713.15,0.00013698,2]
[360876965,1747095039134,-400.0,0.00013698,2]
[360876968,1747095039145,-988.83,0.00013698,2]
[360876970,1747095039158,-400.0,0.00013698,2]
[360876972,1747095039168,-400.0,0.00013698,2]
[360876974,1747095039177,-533.18,0.00013698,2]
[360876976,1747095039186,-1275.28,0.00013698,2]
[360876978,1747095039195,-400.0,0.00013698,2]
[360876979,1747095039205,-400.0,0.00013698,2]
[360876981,1747095039215,-400.0,0.00013698,2]
[360876983,1747095039224,-400.0,0.00013698,2]
[360876985,1747095039233,-818.45,0.00013698,2]
[360876987,1747095039245,-713.31,0.00013698,2]
[360876989,1747095039254,-1144.87,0.00013698,2]
[360877016,1747095039530,-594.79,0.00013698,2]
[360877020,1747095039559,-400.0,0.00013698,2]
[360877022,1747095039574,-525.3,0.00013698,2]
[360877024,1747095039584,-400.0,0.00013698,2]
[360877026,1747095039594,-400.0,0.00013698,2]
[360877028,1747095039604,-400.0,0.00013698,2]
[360877031,1747095039613,-400.0,0.00013698,2]
[360877032,1747095039622,-400.0,0.00013698,2]
[360877034,1747095039632,-400.0,0.00013698,2]
[360877037,1747095039641,-400.0,0.00013698,2]
[360877038,1747095039651,-400.0,0.00013698,2]
[360877041,1747095039660,-436.6,0.00013698,2]
[360877043,1747095039670,-400.0,0.00013698,2]
[360877044,1747095039679,-1092.85,0.00013698,2]
[360877047,1747095039689,-2007.72,0.00013698,2]
[360877049,1747095039698,-946.24,0.00013698,2]
[360877051,1747095039708,-1092.45,0.00013698,2]
[360877052,1747095039718,-400.0,0.00013698,2]
[360877055,1747095039728,-400.0,0.00013698,2]
[360877056,1747095039737,-400.0,0.00013698,2]
[360877059,1747095039747,-400.6,0.00013698,2]
[360877061,1747095039756,-446.63,0.00013698,2]
[360877062,1747095039765,-400.0,0.00013698,2]
[360877064,1747095039775,-151.0,0.00013699,2]
[360877067,1747095039785,-282.49,0.00013699,2]
[360877068,1747095039794,-150.0,0.00013699,2]
[360877070,1747095039803,-941.828,0.00013699,2]
[360877073,1747095039813,-500.0,0.00013699,2]
[360877075,1747095039822,-500.0,0.00013699,2]
[360877076,1747095039832,-500.0,0.00013699,2]
[360877079,1747095039842,-500.0,0.00013699,2]
[360877081,1747095039856,-500.0,0.00013699,2]
[360877083,1747095039865,-500.0,0.00013699,2]
[360877085,1747095039874,-500.0,0.00013699,2]
[360877087,1747095039883,-370.43406782,0.00013699,2]
[360877089,1747095039892,-500.0,0.00013699,2]
[360877090,1747095039901,-500.0,0.00013699,2]
[360877092,1747095039910,-277.77804373,0.00013699,2]
[360877094,1747095039920,-500.0,0.00013699,2]
[360877097,1747095039930,-1156.61,0.000137,2]
[360877099,1747095039940,-170.35917614,0.00013708,2]
[360877100,1747095039949,-485.04,0.00013751,2]
[360877101,1747095039958,-400.0,0.00013751,2]
[360877102,1747095039968,-545.10952262,0.00013751,2]
[360877103,1747095039977,-400.0,0.00013751,2]
[360877104,1747095039986,-400.0,0.00013751,2]
[360877105,1747095039994,-400.0,0.00013751,2]
[360877106,1747095040003,-400.0,0.00013751,2]
[360877107,1747095040013,-400.0,0.00013751,2]
[360877108,1747095040022,-400.0,0.00013751,2]
[360877109,1747095040032,-400.0,0.00013751,2]
[360877110,1747095040041,-400.0,0.00013751,2]
[360877111,1747095040050,-400.0,0.00013751,2]
[360877112,1747095040059,-400.0,0.00013751,2]
[360877113,1747095040067,-400.0,0.00013751,2]
[360877115,1747095040076,-400.0,0.00013751,2]
[360877116,1747095040086,-400.0,0.00013751,2]
[360877117,1747095040095,-400.0,0.00013751,2]
[360877118,1747095040104,-400.0,0.00013751,2]
[360877119,1747095040113,-400.0,0.00013751,2]
[360877120,1747095040123,-400.0,0.00013751,2]
[360877121,1747095040133,-400.0,0.00013751,2]
[360877122,1747095040142,-400.0,0.00013751,2]
[360877123,1747095040151,-400.0,0.00013751,2]
[360877124,1747095040161,-400.0,0.00013751,2]
[360877125,1747095040174,-400.0,0.00013751,2]
[360877126,1747095040183,-424.89,0.00013751,2]
[360877127,1747095040192,-400.0,0.00013751,2]
[360877128,1747095040201,-400.0,0.00013751,2]
[360877129,1747095040210,-360.28486508,0.00013751,2]
[360877130,1747095040220,-339.455728,0.00013751,2]
[360877131,1747095040229,-400.0,0.00013751,2]
[360877132,1747095040239,-400.81805895,0.00013751,2]
[360877133,1747095040248,-400.0,0.00013751,2]
[360877134,1747095040258,-400.0,0.00013751,2]
[360877135,1747095040267,-400.0,0.00013751,2]
[360877136,1747095040276,-400.0,0.00013751,2]
[360877137,1747095040285,-400.0,0.00013751,2]
[360877138,1747095040294,-400.0,0.00013751,2]
[360877139,1747095040303,-400.0,0.00013751,2]
[360877140,1747095040312,-400.0,0.00013751,2]
[360877141,1747095040321,-400.0,0.00013751,2]
[360877142,1747095040331,-400.0,0.00013751,2]
[360877143,1747095040341,-1033.57,0.00013751,2]
[360877144,1747095040352,-400.0,0.00013751,2]
[360877145,1747095040361,-400.0,0.00013751,2]
[360877146,1747095040370,-400.0,0.00013751,2]
[360877147,1747095040379,-403.77,0.00013751,2]
[360877148,1747095040388,-400.0,0.00013751,2]
[360877149,1747095040399,-892.89,0.00013751,2]
[360877150,1747095040410,-400.0,0.00013751,2]
[360877151,1747095040420,-728.44,0.00013751,2]
[360877152,1747095040429,-400.0,0.00013751,2]
[360877153,1747095040439,-404.63,0.00013751,2]
[360877154,1747095040448,-1257.13,0.00013751,2]
[360877155,1747095040458,-741.96,0.00013751,2]
[360877156,1747095040467,-708.04,0.00013751,2]
[360877157,1747095040477,-399.94,0.00013751,2]
[360877158,1747095040486,-400.0,0.00013751,2]
[360877159,1747095040496,-537.98,0.00013751,2]
[360877160,1747095040505,-400.0,0.00013751,2]
[360877161,1747095040515,-404.68,0.00013751,2]
[360877162,1747095040524,-400.0,0.00013751,2]
[360877163,1747095040533,-400.0,0.00013751,2]
[360877164,1747095040542,-400.0,0.00013751,2]
[360877165,1747095040551,-400.0,0.00013751,2]
[360877166,1747095040561,-592.09,0.00013751,2]
[360877167,1747095040570,-400.0,0.00013751,2]
[360877168,1747095040579,-400.0,0.00013751,2]
[360877169,1747095040588,-1241.89,0.00013751,2]
[360877170,1747095040599,-400.0,0.00013751,2]
[360877171,1747095040608,-400.0,0.00013751,2]
[360877172,1747095040618,-738.42,0.00013751,2]
[360877173,1747095040627,-525.02,0.00013751,2]
[360877174,1747095040636,-400.0,0.00013751,2]
[360877175,1747095040645,-400.0,0.00013751,2]
[360877176,1747095040654,-400.0,0.00013751,2]
[360877177,1747095040663,-324.52470692,0.00013751,2]
[360877178,1747095040672,-400.0,0.00013751,2]
[360877179,1747095040681,-400.0,0.00013751,2]
[360877180,1747095040690,-1832.35,0.00013751,2]
[360877181,1747095040700,-13135.1096671,0.00013751,2]
[360877182,1747095040713,-360.43846221,0.00013751,2]
[360877183,1747095040725,-1006.6886836,0.00013751,2]
[360877184,1747095040759,-4980.08318709,0.00013751,2]
[360877185,1747095040768,-400.0,0.00013751,2]
[360877186,1747095040778,-477.24,0.00013751,2]
[360877187,1747095040787,-400.0,0.00013751,2]
[360877188,1747095040797,-2625.46,0.00013751,2]
[360877189,1747095040806,-400.0,0.00013751,2]
[360877190,1747095040815,-400.0,0.00013751,2]
[360877191,1747095040824,-585.87,0.00013751,2]
[360877192,1747095040834,-1414.29,0.00013751,2]
[360877193,1747095040843,-400.0,0.00013751,2]
[360877194,1747095040854,-400.0,0.00013751,2]
[360877195,1747095040862,-400.0,0.00013751,2]
[360877196,1747095040872,-1097.73,0.00013751,2]
[360877197,1747095040881,-400.0,0.00013751,2]
[360877198,1747095040890,-400.0,0.00013751,2]
[360877199,1747095040899,-400.0,0.00013751,2]
[360877200,1747095040909,-400.0,0.00013751,2]
[360877201,1747095040917,-565.93,0.00013751,2]
[360877202,1747095040927,-400.0,0.00013751,2]
[360877203,1747095040936,-400.0,0.00013752,2]
[360877204,1747095040945,-400.0,0.00013752,2]
[360877205,1747095040954,-400.0,0.00013752,2]
[360877206,1747095040963,-400.0,0.00013752,2]
[360877207,1747095040972,-1034.19,0.00013752,2]
[360877208,1747095040981,-508.51,0.00013752,2]
[360877209,1747095040990,-80.98694326,0.00013752,2]
[360877212,1747095041224,-1426.75006995,0.00013752,2]
[360877214,1747095041237,-136.58298679,0.00013752,2]
[360877215,1747095041248,-3464.46701321,0.00013752,2]
[360877216,1747095041260,-940.0,0.00013752,2]
[360877217,1747095041272,-2110.977576,0.00013752,2]
[360877218,1747095041283,-450.0,0.00013752,2]
[360877222,1747095043453,-277.61197885,0.00013751,2]
[360877224,1747095043682,-122.38802115,0.00013751,2]
[360877225,1747095043692,-442.56081447,0.00013752,2]
[360877227,1747095043704,-497.6,0.00013752,2]
[360877469,1747095046219,-772.51,0.00013698,2]
[360877471,1747095046229,-400.0,0.00013751,2]
[360877473,1747095046240,-1805.15281338,0.00013752,2]
[360877475,1747095046251,-364.21701894,0.00013752,2]
[360877477,1747095046260,-400.0,0.00013752,2]
[360877479,1747095046270,-400.0,0.00013752,2]
[360877481,1747095046279,-2595.37,0.00013752,2]
[360877483,1747095046288,-1128.32,0.00013752,2]
[360877485,1747095046297,-540.07,0.00013752,2]
[360877487,1747095046306,-1000.0,0.00013752,2]
[360877489,1747095046315,-400.0,0.00013752,2]
[360877491,1747095046324,-400.0,0.00013752,2]
[360877493,1747095046333,-400.0,0.00013752,2]
[360877495,1747095046343,-400.0,0.00013752,2]
[360877497,1747095046353,-400.0,0.00013752,2]
[360877499,1747095046362,-400.0,0.00013752,2]
[360877501,1747095046371,-400.0,0.00013752,2]
[360877503,1747095046380,-1096.74,0.00013752,2]
[360877505,1747095046389,-400.0,0.00013752,2]
[360877507,1747095046398,-703.35,0.00013752,2]
[360877509,1747095046408,-1746.33,0.00013752,2]
[360877511,1747095046417,-400.0,0.00013752,2]
[360877513,1747095046427,-400.0,0.00013752,2]
[360877515,1747095046436,-447.76,0.00013752,2]
[360877517,1747095046445,-400.0,0.00013752,2]
[360877519,1747095046455,-164.98552599,0.00013752,2]
[360877524,1747095046487,-957.95447401,0.00013752,2]
[360877526,1747095046497,-192.59551599,0.00013752,2]
[360877528,1747095046508,-207.40448401,0.00013752,2]
[360877530,1747095046517,-276.41004245,0.00013752,2]
[360877532,1747095046528,-123.58995755,0.00013752,2]
[360877534,1747095046537,-400.0,0.00013752,2]
[360877552,1747095046671,-1400.69,0.00013752,2]
[360877556,1747095046715,-714.99,0.00013752,2]
[360877558,1747095046724,-232.86270179,0.00013752,2]
[360877560,1747095046739,-584.00729821,0.00013752,2]
[360877562,1747095046748,-1228.99270178,0.00013752,2]
[360879759,1747095093138,600.0,0.00028,120]
[360879760,1747095113970,600.0,0.00028,120]
[360879761,1747095132351,300.0,0.00028,120]
[360879762,1747095147670,300.0,0.00028,120]
[360879763,1747095162800,600.0,0.00028,120]
[360879764,1747095185911,598.787,0.00028,120]
[360879771,1747095399610,150.0,0.00015,5]
[360879776,1747095693052,150.0,0.00013699,7]
[360879779,1747096028760,241.58,0.00010307,2]
[360879824,1747096232548,-244.35,0.0001223,2]
[360879825,1747096232560,-46.91119028,0.0001224,2]
[360879826,1747096232572,-153.08880972,0.0001224,2]
[360879827,1747096232581,-240.56,0.00012251,2]
[360879828,1747096232591,-500.0,0.00012255,2]
[360879829,1747096232600,-157.69948464,0.00012255,2]
[360879830,1747096232610,-208.88244831,0.00012257,2]
[360879831,1747096232622,-575.40914099,0.00012257,2]
[360879832,1747096232632,-2119.1384107,0.00012257,2]
[360879833,1747096232642,-200.0,0.00012258,2]
[360879834,1747096232651,-1000.0,0.00012299,2]
[360879835,1747096232660,-241.58,0.00012571,2]
[360879836,1747096232670,-1527.82,0.00012769,2]
[360879837,1747096232679,-1200.0,0.00012771,2]
[360879838,1747096232689,-1527.82,0.00012772,2]
[360879839,1747096232702,-300.0,0.00012775,2]
[360879840,1747096232712,-849.88425201,0.00012776,2]
[360879864,1747096232882,-677.93574799,0.00012776,2]
[360879867,1747096232891,-250.23776669,0.00012779,2]
[360879880,1747096232952,-487.56775065,0.00012779,2]
[360879885,1747096232963,-790.01448266,0.00012779,2]
[360879888,1747096232972,-1355.00551934,0.00012783,2]
[360879890,1747096232983,-172.81448066,0.00012783,2]
[360879892,1747096232992,-189.59900269,0.00012785,2]
[360879894,1747096233001,-168.55382601,0.00012785,2]
[360879896,1747096233010,-65.81571362,0.00012786,2]
[360879898,1747096233022,-1462.00428638,0.00012786,2]
[360879900,1747096233032,-1527.82,0.00012789,2]
[360879902,1747096233041,-1527.82,0.00012793,2]
[360879904,1747096233050,-1527.82,0.00012796,2]
[360879906,1747096233061,-1527.82,0.00012799,2]
[360879931,1747096233277,-554.0,0.000128,2]
[360879933,1747096233286,-1527.82,0.00012803,2]
[360879935,1747096233295,-1527.82,0.00012806,2]
[360879937,1747096233304,-1527.82,0.0001281,2]
[360879939,1747096233314,-705.74730352,0.00012813,2]
[360879941,1747096233638,-822.07269648,0.00012813,2]
[360879942,1747096233647,-1527.82,0.00012816,2]
[360879943,1747096233656,-1527.82,0.0001282,2]
[360879944,1747096233666,-1527.82,0.00012823,2]
[360879945,1747096233676,-1527.82,0.00012826,2]
[360879946,1747096233686,-1527.82,0.0001283,2]
[360879947,1747096233697,-463.17918555,0.00012833,2]
[360879948,1747096233709,-559.59531455,0.00012833,2]
[360879949,1747096233720,-505.0454999,0.00012833,2]
[360879950,1747096233730,-207.4,0.0001309,2]
[360879951,1747096233739,-155.0,0.0001309,2]
[360879952,1747096233749,-151.0,0.0001309,2]
[360879953,1747096233758,-668.65185757,0.0001309,2]
[360879954,1747096233768,-151.0,0.0001309,2]
[360879955,1747096233777,-151.0,0.0001309,2]
[360879956,1747096233788,-164.32,0.000132,2]
[360879957,1747096233797,-311.26,0.00013252,2]
[360879958,1747096233807,-200.0,0.00013453,2]
[360879959,1747096233817,-200.0,0.00013453,2]
[360879960,1747096233826,-200.0,0.00013476,2]
[360879961,1747096233835,-498.0,0.00013589,2]
[360879962,1747096233845,-813.41476854,0.00013638,2]
[360879963,1747096233854,-434.836091,0.00013641,2]
[360879964,1747096233864,-1598.7898,0.00013651,2]
[360879965,1747096233874,-592.1361,0.00013651,2]
[360879966,1747096233884,-3127.70894004,0.00013651,2]
[360879967,1747096233893,-141.58658294,0.00013651,2]
[360879968,1747096233905,-60.7182828,0.00013651,2]
[360879969,1747096233914,-3570.7817172,0.00013652,2]
[360879970,1747096233925,-519.20423304,0.00013652,2]
[360879971,1747096233940,-250.28547636,0.00013652,2]
[360879977,1747096238263,-824.86375145,0.00013652,2]
[360879978,1747096238533,-15420.40442195,0.00013652,2]
[360879979,1747096238542,-500.0,0.00013652,2]
[360879980,1747096238551,-1469.8765,0.00013652,2]
[360879981,1747096238561,-4684.453001,0.00013698,2]
[360879982,1747096238571,-4684.453001,0.00013698,2]
[360879983,1747096238580,-3763.22935493,0.00013698,2]
[360879989,1747096240407,-252.56465464,0.00013698,2]
[360879990,1747096240419,-668.65899143,0.00013698,2]
[360879991,1747096240428,-4684.453001,0.00013698,2]
[360879992,1747096240437,-3650.7224985,0.00013698,2]
[360879993,1747096240447,-286.83852091,0.00013698,2]
[360879994,1747096240459,-746.89198159,0.00013698,2]
[360879995,1747096240468,-4005.39558271,0.00013698,2]
[360879996,1747096240479,-679.05741829,0.00013698,2]
[360879997,1747096240487,-153.697494,0.00013698,2]
[360879998,1747096240496,-153.697494,0.00013698,2]
[360879999,1747096240505,-4684.453001,0.00013698,2]
[360880000,1747096240514,-153.697494,0.00013698,2]
[360880001,1747096240523,-4684.453001,0.00013698,2]
[360880002,1747096240532,-153.697494,0.00013698,2]
[360880003,1747096240542,-1001.14055349,0.00013698,2]
[360880004,1747096240559,-1402.275,0.00013698,2]
[360880005,1747096240571,-2281.03744751,0.00013698,2]
[360880006,1747096240581,-153.697494,0.00013698,2]
[360880007,1747096240590,-153.16505852,0.00013698,2]
[360880008,1747096240602,-1092.97479838,0.00013698,2]
[360880009,1747096240788,-3438.3131441,0.00013698,2]
[360880010,1747096240797,-153.697494,0.00013698,2]
[360880011,1747096240807,-4684.453001,0.00013698,2]
[360880012,1747096240816,-153.697494,0.00013698,2]
[360880013,1747096240825,-4684.453001,0.00013698,2]
[360880014,1747096240835,-153.697494,0.00013698,2]
[360880015,1747096240843,-4684.453001,0.00013698,2]
[360880017,1747096240853,-290.05061697,0.00013698,2]
[360880025,1747096243453,-4394.40238403,0.00013698,2]
[360880026,1747096243462,-4684.453001,0.00013698,2]
[360880027,1747096243471,-4684.453001,0.00013698,2]
[360880028,1747096243479,-385.57965328,0.00013698,2]
[360880029,1747096243580,-743.35,0.00013698,2]
[360880046,1747096244136,-3555.52334772,0.00013698,2]
[360880047,1747096244147,-4684.453001,0.00013698,2]
[360880048,1747096244158,-4684.453001,0.00013698,2]
[360880049,1747096244167,-4684.453001,0.00013698,2]
[360880050,1747096244176,-3203.86150567,0.00013698,2]
[360880051,1747096244188,-1480.59149533,0.00013698,2]
[360880052,1747096244197,-598.01822397,0.00013698,2]
[360880053,1747096244223,-158.98189596,0.00013651,2]
[360880054,1747096244233,-853.20289416,0.00013698,2]
[360880055,1747096244245,-3233.23188287,0.00013698,2]
[360880056,1747096244255,-3591.20006013,0.00013698,2]
[360880063,1747096246375,-1093.25294087,0.00013698,2]
[360880064,1747096246387,-151.0,0.00013699,2]
[360880065,1747096246397,-1724.44705931,0.00013699,2]
[360880066,1747096246409,-23902.45980827,0.00013699,2]
[360880067,1747096246648,-4469.64549135,0.00013699,2]
[360880068,1747096246659,-50061.5457479,0.00013699,2]
[360880071,1747096440873,16158.0,0.00015,7]
[360880072,1747096631056,1652.34,0.00028,120]
[360880074,1747097083618,252.16,0.00010784,2]
[360880114,1747097431514,-160.16,0.00012699,2]
[360880115,1747097431524,-200.0,0.00012706,2]
[360880116,1747097431535,-200.0,0.00012713,2]
[360880117,1747097431545,-1200.0,0.00012714,2]
[360880118,1747097431554,-300.0,0.00012714,2]
[360880119,1747097431563,-262.55479847,0.00012714,2]
[360880120,1747097431575,-37.44520153,0.00012714,2]
[360880121,1747097431585,-500.0,0.00012715,2]
[360880122,1747097431594,-500.0,0.00012715,2]
[360880123,1747097431604,-500.0,0.00012715,2]
[360880124,1747097431613,-302.13623199,0.00012715,2]
[360880125,1747097431646,-197.86376801,0.00012715,2]
[360880126,1747097431655,-500.0,0.00012715,2]
[360880127,1747097431665,-500.0,0.00012715,2]
[360880128,1747097431674,-230.24597973,0.00012715,2]
[360880129,1747097431684,-500.0,0.00012715,2]
[360880130,1747097431693,-500.0,0.00012715,2]
[360880131,1747097431702,-500.0,0.00012715,2]
[360880132,1747097431712,-500.0,0.00012715,2]
[360880133,1747097431721,-500.0,0.00012715,2]
[360880134,1747097431730,-500.0,0.00012715,2]
[360880135,1747097431740,-500.0,0.00012715,2]
[360880136,1747097431749,-500.0,0.00012715,2]
[360880137,1747097431758,-500.0,0.00012715,2]
[360880139,1747097431767,-500.0,0.00012715,2]
[360880140,1747097431776,-500.0,0.00012715,2]
[360880142,1747097431786,-500.0,0.00012715,2]
[360880144,1747097431795,-500.0,0.00012715,2]
[360880146,1747097431804,-500.0,0.00012715,2]
[360880148,1747097431814,-500.0,0.00012715,2]
[360880150,1747097431823,-500.0,0.00012715,2]
[360880152,1747097431832,-500.0,0.00012715,2]
[360880154,1747097431842,-200.0,0.00012718,2]
[360880156,1747097431852,-211.8,0.0001272,2]
[360880159,1747097431862,-1000.0,0.00012722,2]
[360880161,1747097431871,-252.16,0.00013048,2]
[360880163,1747097431880,-163.25,0.00013077,2]
[360880165,1747097431889,-207.4,0.0001309,2]
[360880166,1747097431899,-434.83609101,0.00013638,2]
[360880169,1747097431908,-250.0,0.00013648,2]
[360880170,1747097431917,-1000.0,0.0001365,2]
[360880173,1747097431926,-2809.661,0.0001365,2]
[360880176,1747097431936,-1000.0,0.0001365,2]
[360880179,1747097431945,-187.47098494,0.0001365,2]
[360880181,1747097431955,-202.30486573,0.0001365,2]
[360880185,1747097431964,-4006.0528,0.0001365,2]
[360880188,1747097431974,-2143.1793,0.0001365,2]
[360880191,1747097431983,-4054.8608,0.00013651,2]
[360880193,1747097431992,-500.0,0.00013651,2]
[360880196,1747097432001,-6538.6563,0.00013651,2]
[360880199,1747097432011,-807.1883,0.00013651,2]
[360880202,1747097432020,-2459.8101,0.00013651,2]
[360880206,1747097432030,-8730.0135,0.00013651,2]
[360880208,1747097432040,-668.65185757,0.0001369,2]
[360880211,1747097432050,-151.0,0.0001369,2]
[360880214,1747097432059,-151.0,0.0001369,2]
[360880217,1747097432068,-163.37577826,0.00013698,2]
[360880219,1747097432078,-400.0,0.00013698,2]
[360880221,1747097432087,-403.84552976,0.00013698,2]
[360880222,1747097432097,-350.73663312,0.00013698,2]
[360880224,1747097432106,-404.76712008,0.00013698,2]
[360880226,1747097432115,-380.47997356,0.00013698,2]
[360880227,1747097432125,-404.98697311,0.00013698,2]
[360880228,1747097432136,-424.79257453,0.00013698,2]
[360880229,1747097432145,-400.0,0.00013698,2]
[360880230,1747097432155,-400.0,0.00013698,2]
[360880231,1747097432164,-400.0,0.00013698,2]
[360880232,1747097432176,-532.23,0.00013698,2]
[360880233,1747097432185,-409.35506513,0.00013698,2]
[360880234,1747097432194,-400.0,0.00013698,2]
[360880235,1747097432204,-309.53523004,0.00013698,2]